[Event "January 9 Late 2024"]
[Site "https://www.chess.com"]
[Date "2024.01.09"]
[Round "6"]
[White "Aravindh, Chithambaram VR."]
[Black "Msellek, Ilyass"]
[Result "1-0"]
[Board "27"]
[TimeControl "180+1"]
[WhiteFideId "5072786"]
[BlackFideId "675938"]
[WhiteElo "2934"]
[BlackElo "2684"]
[WhiteTeam "IND"]
[BlackTeam "MAR"]
[WhiteClock "0:02:04"]
[BlackClock "0:01:37"]

1. b3 {[%clk 0:03:00]}  e5 {[%clk 0:02:55]} 2. Bb2 {[%clk 0:03:01]}  Nc6 {[%clk 0:02:55]} 3. c4 {[%clk 0:03:00]}  Nf6 {[%clk 0:02:55]} 4. Nf3 {[%clk 0:03:01]}  e4 {[%clk 0:02:51]} 5. Nd4 {[%clk 0:03:01]}  g6 {[%clk 0:02:50]} 6. Nxc6 {[%clk 0:02:50]}  dxc6 {[%clk 0:02:51]} 7. g3 {[%clk 0:02:50]}  Bg7 {[%clk 0:02:49]} 8. Bg2 {[%clk 0:02:50]}  O-O {[%clk 0:02:50]} 9. O-O {[%clk 0:02:50]}  Bf5 {[%clk 0:02:46]} 10. Nc3 {[%clk 0:02:49]}  Qd7 {[%clk 0:02:45]} 11. Qe1 {[%clk 0:02:43]}  Rfe8 {[%clk 0:02:40]} 12. Rd1 {[%clk 0:02:41]}  Rad8 {[%clk 0:02:39]} 13. f3 {[%clk 0:02:40]}  exf3 {[%clk 0:02:32]} 14. Bxf3 {[%clk 0:02:40]}  Bh3 {[%clk 0:02:31]} 15. Bg2 {[%clk 0:02:38]}  Bxg2 {[%clk 0:02:17]} 16. Kxg2 {[%clk 0:02:39]}  Ng4 {[%clk 0:02:16]} 17. h3 {[%clk 0:02:30]}  Ne5 {[%clk 0:02:16]} 18. d4 {[%clk 0:02:28]}  Ng4 {[%clk 0:02:02]} 19. hxg4 {[%clk 0:02:25]}  Qxg4 {[%clk 0:02:02]} 20. Qf2 {[%clk 0:02:22]}  f5 {[%clk 0:02:01]} 21. e3 {[%clk 0:02:19]}  h5 {[%clk 0:02:01]} 22. Qf3 {[%clk 0:02:17]}  Qg5 {[%clk 0:02:01]} 23. Bc1 {[%clk 0:02:13]}  Qe7 {[%clk 0:01:55]} 24. Ne2 {[%clk 0:02:11]}  c5 {[%clk 0:01:49]} 25. Nf4 {[%clk 0:02:07]}  cxd4 {[%clk 0:01:48]} 26. exd4 {[%clk 0:02:08]}  Qf7 {[%clk 0:01:40]} 27. d5 {[%clk 0:02:05]}  Re4 {[%clk 0:01:37]} 28. Ne6 {[%clk 0:02:04]} 1-0

[Event "January 9 Late 2024"]
[Site "https://www.chess.com"]
[Date "2024.01.09"]
[Round "6"]
[White "Matlakov, Maxim"]
[Black "Sherman, Raem"]
[Result "1-0"]
[Board "28"]
[TimeControl "180+1"]
[WhiteFideId "4168003"]
[BlackFideId "2822288"]
[WhiteElo "2931"]
[BlackElo "2669"]
[WhiteTeam "RUS"]
[BlackTeam "ISR"]
[WhiteClock "0:00:42"]
[BlackClock "0:00:04"]

1. d4 {[%clk 0:03:00]}  d5 {[%clk 0:02:59]} 2. Nf3 {[%clk 0:03:01]}  Nf6 {[%clk 0:02:59]} 3. Bg5 {[%clk 0:03:01]}  e6 {[%clk 0:02:59]} 4. e3 {[%clk 0:03:01]}  Be7 {[%clk 0:02:59]} 5. Nbd2 {[%clk 0:03:00]}  h6 {[%clk 0:02:58]} 6. Bh4 {[%clk 0:02:59]}  O-O {[%clk 0:02:58]} 7. Bd3 {[%clk 0:02:58]}  b6 {[%clk 0:02:54]} 8. Qe2 {[%clk 0:02:57]}  Bb7 {[%clk 0:02:54]} 9. Ne5 {[%clk 0:02:55]}  c5 {[%clk 0:02:50]} 10. c3 {[%clk 0:02:55]}  Nfd7 {[%clk 0:02:42]} 11. Bxe7 {[%clk 0:02:52]}  Qxe7 {[%clk 0:02:42]} 12. O-O {[%clk 0:02:48]}  Nxe5 {[%clk 0:02:24]} 13. dxe5 {[%clk 0:02:49]}  Nd7 {[%clk 0:02:19]} 14. f4 {[%clk 0:02:49]}  f5 {[%clk 0:02:11]} 15. g4 {[%clk 0:02:43]}  g6 {[%clk 0:01:56]} 16. Rf3 {[%clk 0:02:25]}  Rf7 {[%clk 0:01:37]} 17. Rg3 {[%clk 0:02:24]}  Rg7 {[%clk 0:01:35]} 18. h3 {[%clk 0:02:22]}  Kh7 {[%clk 0:01:29]} 19. Kh2 {[%clk 0:02:22]}  Rag8 {[%clk 0:01:23]} 20. Rag1 {[%clk 0:02:21]}  c4 {[%clk 0:01:13]} 21. Bc2 {[%clk 0:02:21]}  Nc5 {[%clk 0:01:14]} 22. Nf3 {[%clk 0:02:21]}  Ne4 {[%clk 0:01:12]} 23. R3g2 {[%clk 0:02:13]}  b5 {[%clk 0:01:10]} 24. Nd4 {[%clk 0:02:08]}  a6 {[%clk 0:01:08]} 25. Qe1 {[%clk 0:01:52]}  Bc8 {[%clk 0:01:03]} 26. h4 {[%clk 0:01:50]}  h5 {[%clk 0:00:56]} 27. Bxe4 {[%clk 0:01:41]}  dxe4 {[%clk 0:00:53]} 28. gxh5 {[%clk 0:01:39]}  gxh5 {[%clk 0:00:53]} 29. Rg5 {[%clk 0:01:38]}  Rxg5 {[%clk 0:00:48]} 30. fxg5 {[%clk 0:01:26]}  Kg7 {[%clk 0:00:26]} 31. Ne2 {[%clk 0:01:25]}  Bb7 {[%clk 0:00:25]} 32. Nf4 {[%clk 0:01:25]}  Rh8 {[%clk 0:00:25]} 33. Qd1 {[%clk 0:01:23]}  Bc6 {[%clk 0:00:16]} 34. Qd4 {[%clk 0:01:14]}  Kf7 {[%clk 0:00:15]} 35. Rd1 {[%clk 0:01:13]}  a5 {[%clk 0:00:11]} 36. Kg3 {[%clk 0:01:13]}  a4 {[%clk 0:00:10]} 37. Qb6 {[%clk 0:01:12]}  Rc8 {[%clk 0:00:09]} 38. Rd6 {[%clk 0:01:11]}  Bd7 {[%clk 0:00:08]} 39. Qb7 {[%clk 0:01:07]}  Rd8 {[%clk 0:00:09]} 40. Qc7 {[%clk 0:01:06]}  Ke8 {[%clk 0:00:08]} 41. a3 {[%clk 0:01:03]}  Rc8 {[%clk 0:00:08]} 42. Qb6 {[%clk 0:01:00]}  Rd8 {[%clk 0:00:07]} 43. Nxe6 {[%clk 0:01:00]}  Rc8 {[%clk 0:00:08]} 44. Nf4 {[%clk 0:00:49]}  Qxe5 {[%clk 0:00:07]} 45. Rd5 {[%clk 0:00:44]}  Qe7 {[%clk 0:00:07]} 46. Qg6+ {[%clk 0:00:43]}  Kd8 {[%clk 0:00:04]} 47. Ne6+ {[%clk 0:00:42]} 1-0

[Event "January 9 Late 2024"]
[Site "https://www.chess.com"]
[Date "2024.01.09"]
[Round "6"]
[White "Liascovich, Lucas"]
[Black "Espinoza Villanueva, Rodrigo"]
[Result "1-0"]
[Board "30"]
[TimeControl "180+1"]
[WhiteFideId "108634"]
[BlackFideId "5140188"]
[WhiteElo "2925"]
[BlackElo "2605"]
[WhiteTeam "ARG"]
[BlackTeam "MEX"]
[WhiteClock "0:00:12"]
[BlackClock "0:00:05"]

1. e4 {[%clk 0:03:00]}  c5 {[%clk 0:02:59]} 2. Nc3 {[%clk 0:03:00]}  a6 {[%clk 0:02:58]} 3. d4 {[%clk 0:03:00]}  cxd4 {[%clk 0:02:58]} 4. Qxd4 {[%clk 0:03:01]}  Nc6 {[%clk 0:02:57]} 5. Qe3 {[%clk 0:03:01]}  d6 {[%clk 0:02:55]} 6. Bd2 {[%clk 0:03:01]}  Nf6 {[%clk 0:02:54]} 7. O-O-O {[%clk 0:03:02]}  g6 {[%clk 0:02:52]} 8. f3 {[%clk 0:02:58]}  Bg7 {[%clk 0:02:52]} 9. Nd5 {[%clk 0:02:58]}  Nxd5 {[%clk 0:02:47]} 10. exd5 {[%clk 0:02:59]}  Ne5 {[%clk 0:02:48]} 11. Bc3 {[%clk 0:03:00]}  O-O {[%clk 0:02:47]} 12. h4 {[%clk 0:02:55]}  e6 {[%clk 0:02:43]} 13. h5 {[%clk 0:02:54]}  exd5 {[%clk 0:02:41]} 14. hxg6 {[%clk 0:02:54]}  hxg6 {[%clk 0:02:38]} 15. f4 {[%clk 0:02:53]}  Ng4 {[%clk 0:02:34]} 16. Qh3 {[%clk 0:02:53]}  Nh6 {[%clk 0:01:21]} 17. Qh2 {[%clk 0:02:28]}  d4 {[%clk 0:01:17]} 18. Bxd4 {[%clk 0:02:22]}  f6 {[%clk 0:01:17]} 19. Bc4+ {[%clk 0:02:19]}  d5 {[%clk 0:01:15]} 20. Bd3 {[%clk 0:02:02]}  Bf5 {[%clk 0:01:11]} 21. Nf3 {[%clk 0:02:01]}  Qd7 {[%clk 0:01:02]} 22. Kb1 {[%clk 0:01:52]}  Rfc8 {[%clk 0:00:56]} 23. Nh4 {[%clk 0:01:49]}  Bxd3 {[%clk 0:00:54]} 24. Rxd3 {[%clk 0:01:49]}  Kf7 {[%clk 0:00:40]} 25. Rg3 {[%clk 0:01:39]}  Nf5 {[%clk 0:00:37]} 26. Qh3 {[%clk 0:01:39]}  Qc7 {[%clk 0:00:35]} 27. Rc3 {[%clk 0:01:33]}  Qxf4 {[%clk 0:00:32]} 28. Nxf5 {[%clk 0:01:26]}  Qxf5 {[%clk 0:00:25]} 29. Qg3 {[%clk 0:01:25]}  Rxc3 {[%clk 0:00:23]} 30. Bxc3 {[%clk 0:01:23]}  Re8 {[%clk 0:00:23]} 31. a4 {[%clk 0:01:16]}  g5 {[%clk 0:00:23]} 32. Rd1 {[%clk 0:01:05]}  Re2 {[%clk 0:00:21]} 33. Rd3 {[%clk 0:01:02]}  Kg6 {[%clk 0:00:18]} 34. Qc7 {[%clk 0:00:59]}  Qf2 {[%clk 0:00:15]} 35. Rxd5 {[%clk 0:00:57]}  Qxg2 {[%clk 0:00:16]} 36. Rd7 {[%clk 0:00:53]}  Qe4 {[%clk 0:00:14]} 37. Rxg7+ {[%clk 0:00:48]}  Kh6 {[%clk 0:00:14]} 38. Qd7 {[%clk 0:00:41]}  Qxc2+ {[%clk 0:00:12]} 39. Ka2 {[%clk 0:00:39]}  Qxc3 {[%clk 0:00:13]} 40. Rh7+ {[%clk 0:00:37]}  Kg6 {[%clk 0:00:11]} 41. Rg7+ {[%clk 0:00:35]}  Kh6 {[%clk 0:00:12]} 42. Rh7+ {[%clk 0:00:22]}  Kg6 {[%clk 0:00:12]} 43. Qf7+ {[%clk 0:00:18]}  Kf5 {[%clk 0:00:12]} 44. Qd5+ {[%clk 0:00:19]}  Kg6 {[%clk 0:00:11]} 45. Rxb7 {[%clk 0:00:17]}  Qe3 {[%clk 0:00:06]} 46. Qg8+ {[%clk 0:00:15]}  Kf5 {[%clk 0:00:07]} 47. Qh7+ {[%clk 0:00:16]}  Kg4 {[%clk 0:00:05]} 48. Rb4+ {[%clk 0:00:14]}  Kf3 {[%clk 0:00:05]} 49. Rb3 {[%clk 0:00:14]}  g4 {[%clk 0:00:04]} 50. Qf5+ {[%clk 0:00:13]}  Kg3 {[%clk 0:00:02]} 51. Qxf6 {[%clk 0:00:13]}  Qxb3+ {[%clk 0:00:02]} 52. Kxb3 {[%clk 0:00:14]}  Re3+ {[%clk 0:00:03]} 53. Ka2 {[%clk 0:00:14]}  Rf3 {[%clk 0:00:04]} 54. Qxa6 {[%clk 0:00:13]}  Kf2 {[%clk 0:00:04]} 55. Qb6+ {[%clk 0:00:13]}  Kg2 {[%clk 0:00:03]} 56. a5 {[%clk 0:00:13]}  g3 {[%clk 0:00:04]} 57. a6 {[%clk 0:00:14]}  Kh1 {[%clk 0:00:03]} 58. Qb7 {[%clk 0:00:14]}  g2 {[%clk 0:00:04]} 59. Qxf3 {[%clk 0:00:14]}  Kg1 {[%clk 0:00:04]} 60. a7 {[%clk 0:00:12]}  Kh2 {[%clk 0:00:05]} 1-0

[Event "January 9 Late 2024"]
[Site "https://www.chess.com"]
[Date "2024.01.09"]
[Round "6"]
[White "Bellahcene, Bilel"]
[Black "Kuzubov, Yuriy"]
[Result "1-0"]
[Board "32"]
[TimeControl "180+1"]
[WhiteFideId "696358"]
[BlackFideId "14112906"]
[WhiteElo "2596"]
[BlackElo "2896"]
[WhiteTeam "ALG"]
[BlackTeam "UKR"]
[WhiteClock "0:00:08"]
[BlackClock "0:00:11"]

1. e4 {[%clk 0:03:00]}  e6 {[%clk 0:03:00]} 2. d4 {[%clk 0:03:00]}  d5 {[%clk 0:03:00]} 3. e5 {[%clk 0:02:59]}  c5 {[%clk 0:03:00]} 4. c3 {[%clk 0:02:59]}  Nc6 {[%clk 0:03:01]} 5. g3 {[%clk 0:02:58]}  Bd7 {[%clk 0:02:58]} 6. Ne2 {[%clk 0:02:59]}  Rc8 {[%clk 0:02:55]} 7. Bh3 {[%clk 0:02:59]}  Qb6 {[%clk 0:02:37]} 8. O-O {[%clk 0:02:58]}  Nh6 {[%clk 0:02:35]} 9. a3 {[%clk 0:02:56]}  cxd4 {[%clk 0:02:35]} 10. cxd4 {[%clk 0:02:55]}  Na5 {[%clk 0:02:34]} 11. Nbc3 {[%clk 0:02:47]}  Nb3 {[%clk 0:02:30]} 12. Rb1 {[%clk 0:02:47]}  Nxc1 {[%clk 0:02:27]} 13. Rxc1 {[%clk 0:02:19]}  Rc4 {[%clk 0:02:16]} 14. b3 {[%clk 0:02:15]}  Rc6 {[%clk 0:02:16]} 15. b4 {[%clk 0:02:08]}  Be7 {[%clk 0:02:09]} 16. Nf4 {[%clk 0:02:06]}  Qd8 {[%clk 0:02:02]} 17. Qd3 {[%clk 0:01:43]}  Bg5 {[%clk 0:01:57]} 18. Nce2 {[%clk 0:01:43]}  O-O {[%clk 0:01:49]} 19. Rxc6 {[%clk 0:01:42]}  Bxc6 {[%clk 0:01:50]} 20. Rc1 {[%clk 0:01:42]}  Qd7 {[%clk 0:01:45]} 21. Rc5 {[%clk 0:01:42]}  b6 {[%clk 0:01:42]} 22. Rc3 {[%clk 0:01:41]}  Ba4 {[%clk 0:01:15]} 23. Qd2 {[%clk 0:01:25]}  Rc8 {[%clk 0:01:10]} 24. Rxc8+ {[%clk 0:01:21]}  Qxc8 {[%clk 0:01:09]} 25. Qc3 {[%clk 0:01:21]}  Qxc3 {[%clk 0:01:05]} 26. Nxc3 {[%clk 0:01:22]}  Bxf4 {[%clk 0:01:04]} 27. gxf4 {[%clk 0:01:21]}  Bc6 {[%clk 0:00:58]} 28. b5 {[%clk 0:01:20]}  Bb7 {[%clk 0:00:56]} 29. Kf1 {[%clk 0:01:14]}  Kf8 {[%clk 0:00:56]} 30. Ke2 {[%clk 0:01:15]}  Ke7 {[%clk 0:00:57]} 31. Kd3 {[%clk 0:01:14]}  f5 {[%clk 0:00:48]} 32. a4 {[%clk 0:01:01]}  Nf7 {[%clk 0:00:45]} 33. Ke3 {[%clk 0:01:00]}  h6 {[%clk 0:00:44]} 34. Bf1 {[%clk 0:01:00]}  Bc8 {[%clk 0:00:42]} 35. Na2 {[%clk 0:00:57]}  Bd7 {[%clk 0:00:41]} 36. Nb4 {[%clk 0:00:58]}  Kd8 {[%clk 0:00:40]} 37. Bg2 {[%clk 0:00:56]}  Nh8 {[%clk 0:00:37]} 38. Kf3 {[%clk 0:00:55]}  g5 {[%clk 0:00:35]} 39. Kg3 {[%clk 0:00:52]}  Ng6 {[%clk 0:00:33]} 40. Nd3 {[%clk 0:00:52]}  Kc7 {[%clk 0:00:20]} 41. fxg5 {[%clk 0:00:52]}  hxg5 {[%clk 0:00:20]} 42. f4 {[%clk 0:00:53]}  g4 {[%clk 0:00:20]} 43. Nb4 {[%clk 0:00:51]}  Kd8 {[%clk 0:00:20]} 44. h3 {[%clk 0:00:50]}  gxh3 {[%clk 0:00:20]} 45. Bxh3 {[%clk 0:00:51]}  Ke7 {[%clk 0:00:19]} 46. Bg2 {[%clk 0:00:51]}  Kf8 {[%clk 0:00:19]} 47. Bf3 {[%clk 0:00:48]}  Kg7 {[%clk 0:00:18]} 48. Be2 {[%clk 0:00:24]}  Kh6 {[%clk 0:00:18]} 49. Nc6 {[%clk 0:00:23]}  a5 {[%clk 0:00:17]} 50. Nb8 {[%clk 0:00:18]}  Be8 {[%clk 0:00:16]} 51. Na6 {[%clk 0:00:18]}  Ne7 {[%clk 0:00:13]} 52. Nc7 {[%clk 0:00:18]}  Bd7 {[%clk 0:00:13]} 53. Kh4 {[%clk 0:00:17]}  Ng6+ {[%clk 0:00:13]} 54. Kg3 {[%clk 0:00:18]}  Ne7 {[%clk 0:00:13]} 55. Bf3 {[%clk 0:00:18]}  Kg6 {[%clk 0:00:13]} 56. Kh4 {[%clk 0:00:16]}  Bc8 {[%clk 0:00:12]} 57. Bh5+ {[%clk 0:00:16]}  Kh6 {[%clk 0:00:13]} 58. Na8 {[%clk 0:00:17]}  Bd7 {[%clk 0:00:10]} 59. Nxb6 {[%clk 0:00:16]}  Bc8 {[%clk 0:00:11]} 60. Bf7 {[%clk 0:00:12]}  Kg7 {[%clk 0:00:10]} 61. Bh5 {[%clk 0:00:09]}  Bb7 {[%clk 0:00:10]} 62. Nd7 {[%clk 0:00:09]}  Bc8 {[%clk 0:00:09]} 63. Nc5 {[%clk 0:00:10]}  Kf8 {[%clk 0:00:09]} 64. Kg5 {[%clk 0:00:09]}  Kg7 {[%clk 0:00:09]} 65. Be8 {[%clk 0:00:08]}  Kf8 {[%clk 0:00:09]} 66. Bd7 {[%clk 0:00:09]}  Bxd7 {[%clk 0:00:09]} 67. Nxd7+ {[%clk 0:00:10]}  Kf7 {[%clk 0:00:09]} 68. Nc5 {[%clk 0:00:10]}  Nc8 {[%clk 0:00:10]} 69. Nb7 {[%clk 0:00:08]}  Nb6 {[%clk 0:00:10]} 70. Nxa5 {[%clk 0:00:08]}  Nxa4 {[%clk 0:00:10]} 71. Nc6 {[%clk 0:00:08]}  Nb6 {[%clk 0:00:11]} 72. Nb4 {[%clk 0:00:07]}  Nc4 {[%clk 0:00:11]} 73. Nd3 {[%clk 0:00:07]}  Ke7 {[%clk 0:00:10]} 74. Kh4 {[%clk 0:00:06]}  Nd2 {[%clk 0:00:10]} 75. b6 {[%clk 0:00:06]}  Nf3+ {[%clk 0:00:10]} 76. Kh5 {[%clk 0:00:06]}  Nxd4 {[%clk 0:00:11]} 77. b7 {[%clk 0:00:06]}  Nc6 {[%clk 0:00:11]} 78. Kg6 {[%clk 0:00:06]}  d4 {[%clk 0:00:11]} 79. Kg7 {[%clk 0:00:07]}  Nb8 {[%clk 0:00:11]} 80. Nc5 {[%clk 0:00:07]}  Ke8 {[%clk 0:00:09]} 81. Kf6 {[%clk 0:00:05]}  Kd8 {[%clk 0:00:09]} 82. Kxe6 {[%clk 0:00:05]}  Kc7 {[%clk 0:00:10]} 83. Kd5 {[%clk 0:00:05]}  d3 {[%clk 0:00:09]} 84. Nxd3 {[%clk 0:00:05]}  Kxb7 {[%clk 0:00:10]} 85. Ke6 {[%clk 0:00:06]}  Kc7 {[%clk 0:00:10]} 86. Kxf5 {[%clk 0:00:06]}  Kd7 {[%clk 0:00:11]} 87. e6+ {[%clk 0:00:07]}  Ke7 {[%clk 0:00:11]} 88. Ne5 {[%clk 0:00:07]}  Na6 {[%clk 0:00:11]} 89. Ng6+ {[%clk 0:00:08]}  Ke8 {[%clk 0:00:10]} 90. Kf6 {[%clk 0:00:09]}  Nc5 {[%clk 0:00:11]} 91. f5 {[%clk 0:00:10]}  Ne4+ {[%clk 0:00:11]} 92. Ke5 {[%clk 0:00:10]}  Ng5 {[%clk 0:00:12]} 93. f6 {[%clk 0:00:11]}  Kd8 {[%clk 0:00:12]} 94. f7 {[%clk 0:00:11]}  Nh7 {[%clk 0:00:12]} 95. f8=Q+ {[%clk 0:00:11]}  Nxf8 {[%clk 0:00:12]} 96. Nxf8 {[%clk 0:00:12]}  Ke7 {[%clk 0:00:12]} 97. Ng6+ {[%clk 0:00:07]}  Ke8 {[%clk 0:00:12]} 98. Kf6 {[%clk 0:00:08]}  Kd8 {[%clk 0:00:11]} 99. Kf7 {[%clk 0:00:08]} 1-0

[Event "January 9 Late 2024"]
[Site "https://www.chess.com"]
[Date "2024.01.09"]
[Round "6"]
[White "Tang, Andrew"]
[Black "Taboas Rodriguez, Daniel"]
[Result "1-0"]
[Board "33"]
[TimeControl "180+1"]
[WhiteFideId "2059630"]
[BlackFideId "2208466"]
[WhiteElo "2893"]
[BlackElo "2591"]
[WhiteTeam "USA"]
[BlackTeam "ESP"]
[WhiteClock "0:00:10"]
[BlackClock "0:00:00"]

1. d4 {[%clk 0:03:00]}  Nf6 {[%clk 0:02:59]} 2. c4 {[%clk 0:02:54]}  g6 {[%clk 0:02:59]} 3. f3 {[%clk 0:02:54]}  Bg7 {[%clk 0:02:59]} 4. e4 {[%clk 0:02:53]}  d6 {[%clk 0:03:00]} 5. Nc3 {[%clk 0:02:53]}  O-O {[%clk 0:03:00]} 6. Nge2 {[%clk 0:02:53]}  c5 {[%clk 0:03:00]} 7. d5 {[%clk 0:02:53]}  e6 {[%clk 0:03:00]} 8. Ng3 {[%clk 0:02:53]}  exd5 {[%clk 0:03:01]} 9. cxd5 {[%clk 0:02:54]}  a6 {[%clk 0:03:01]} 10. a4 {[%clk 0:02:54]}  Nbd7 {[%clk 0:03:00]} 11. Be2 {[%clk 0:02:54]}  h5 {[%clk 0:02:57]} 12. Bg5 {[%clk 0:02:54]}  Qb6 {[%clk 0:02:56]} 13. Qd2 {[%clk 0:02:53]}  Nh7 {[%clk 0:02:55]} 14. a5 {[%clk 0:02:54]}  Qc7 {[%clk 0:02:47]} 15. Bh6 {[%clk 0:02:54]}  h4 {[%clk 0:02:47]} 16. Bxg7 {[%clk 0:02:54]}  Kxg7 {[%clk 0:02:48]} 17. Nf1 {[%clk 0:02:49]}  b5 {[%clk 0:02:09]} 18. axb6 {[%clk 0:02:49]}  Qxb6 {[%clk 0:02:09]} 19. Ne3 {[%clk 0:02:49]}  Rb8 {[%clk 0:01:17]} 20. Nc4 {[%clk 0:02:47]}  Qc7 {[%clk 0:01:15]} 21. f4 {[%clk 0:02:43]}  Nb6 {[%clk 0:01:12]} 22. Ne3 {[%clk 0:01:55]}  Re8 {[%clk 0:01:04]} 23. O-O {[%clk 0:01:50]}  Nf6 {[%clk 0:01:02]} 24. e5 {[%clk 0:01:45]}  dxe5 {[%clk 0:01:01]} 25. d6 {[%clk 0:01:45]}  Qd8 {[%clk 0:00:54]} 26. f5 {[%clk 0:01:45]}  g5 {[%clk 0:00:28]} 27. Bxa6 {[%clk 0:00:57]}  Nbd7 {[%clk 0:00:25]} 28. Bc4 {[%clk 0:00:47]}  Rb4 {[%clk 0:00:24]} 29. b3 {[%clk 0:00:45]}  Bb7 {[%clk 0:00:22]} 30. Nc2 {[%clk 0:00:42]}  Ne4 {[%clk 0:00:15]} 31. Nxe4 {[%clk 0:00:38]}  Bxe4 {[%clk 0:00:16]} 32. Nxb4 {[%clk 0:00:37]}  cxb4 {[%clk 0:00:17]} 33. Qf2 {[%clk 0:00:19]}  f6 {[%clk 0:00:15]} 34. Ra7 {[%clk 0:00:19]}  Bc6 {[%clk 0:00:12]} 35. Be6 {[%clk 0:00:18]}  Kh6 {[%clk 0:00:08]} 36. Rc1 {[%clk 0:00:17]}  Bb5 {[%clk 0:00:07]} 37. Rcc7 {[%clk 0:00:17]}  Nf8 {[%clk 0:00:06]} 38. Qc5 {[%clk 0:00:14]}  Qb8 {[%clk 0:00:00]} 39. Rcb7 {[%clk 0:00:10]} 1-0

[Event "January 9 Late 2024"]
[Site "https://www.chess.com"]
[Date "2024.01.09"]
[Round "6"]
[White "Bellissimo, Joseph F."]
[Black "Grischuk, Alexander"]
[Result "0-1"]
[Board "34"]
[TimeControl "180+1"]
[WhiteFideId "2609843"]
[BlackFideId "4126025"]
[WhiteElo "2508"]
[BlackElo "3046"]
[WhiteTeam "CAN"]
[BlackTeam "RUS"]
[WhiteClock "0:00:07"]
[BlackClock "0:00:08"]

1. e4 {[%clk 0:03:00]}  e5 {[%clk 0:03:00]} 2. Nf3 {[%clk 0:03:00]}  Nc6 {[%clk 0:03:00]} 3. Bc4 {[%clk 0:03:00]}  Bc5 {[%clk 0:02:59]} 4. Qe2 {[%clk 0:02:58]}  Nf6 {[%clk 0:02:57]} 5. Ng5 {[%clk 0:02:58]}  d5 {[%clk 0:02:50]} 6. exd5 {[%clk 0:02:46]}  Nd4 {[%clk 0:02:29]} 7. Qxe5+ {[%clk 0:02:39]}  Kf8 {[%clk 0:02:30]} 8. Nxf7 {[%clk 0:01:54]}  Kxf7 {[%clk 0:02:22]} 9. d6+ {[%clk 0:01:52]}  Be6 {[%clk 0:02:19]} 10. Qxc5 {[%clk 0:01:52]}  Re8 {[%clk 0:01:02]} 11. O-O {[%clk 0:01:37]}  Qxd6 {[%clk 0:01:02]} 12. Qxd6 {[%clk 0:01:32]}  cxd6 {[%clk 0:01:03]} 13. Bxe6+ {[%clk 0:01:30]}  Rxe6 {[%clk 0:01:04]} 14. Na3 {[%clk 0:01:30]}  d5 {[%clk 0:00:50]} 15. c3 {[%clk 0:01:25]}  Ne2+ {[%clk 0:00:49]} 16. Kh1 {[%clk 0:01:25]}  d4 {[%clk 0:00:48]} 17. d3 {[%clk 0:01:17]}  dxc3 {[%clk 0:00:46]} 18. bxc3 {[%clk 0:01:15]}  Nxc3 {[%clk 0:00:47]} 19. Be3 {[%clk 0:00:56]}  Nfd5 {[%clk 0:00:43]} 20. Rfc1 {[%clk 0:00:50]}  a6 {[%clk 0:00:41]} 21. Nc4 {[%clk 0:00:45]}  b5 {[%clk 0:00:34]} 22. Nb6 {[%clk 0:00:40]}  Nxb6 {[%clk 0:00:33]} 23. Rxc3 {[%clk 0:00:40]}  Nd5 {[%clk 0:00:33]} 24. Rc5 {[%clk 0:00:33]}  Nxe3 {[%clk 0:00:33]} 25. Rc7+ {[%clk 0:00:29]}  Kg8 {[%clk 0:00:28]} 26. fxe3 {[%clk 0:00:28]}  Rxe3 {[%clk 0:00:29]} 27. Rd1 {[%clk 0:00:23]}  Rd8 {[%clk 0:00:28]} 28. Rc3 {[%clk 0:00:18]}  h6 {[%clk 0:00:22]} 29. Kg1 {[%clk 0:00:18]}  Re2 {[%clk 0:00:19]} 30. Ra3 {[%clk 0:00:18]}  Rd6 {[%clk 0:00:19]} 31. d4 {[%clk 0:00:17]}  Rg6 {[%clk 0:00:18]} 32. Rg3 {[%clk 0:00:13]}  Rxg3 {[%clk 0:00:18]} 33. hxg3 {[%clk 0:00:14]}  Rxa2 {[%clk 0:00:12]} 34. d5 {[%clk 0:00:14]}  Kf7 {[%clk 0:00:12]} 35. Kh2 {[%clk 0:00:12]}  Ke7 {[%clk 0:00:11]} 36. Kh3 {[%clk 0:00:12]}  b4 {[%clk 0:00:10]} 37. Kg4 {[%clk 0:00:12]}  Kd6 {[%clk 0:00:10]} 38. Kf5 {[%clk 0:00:10]}  a5 {[%clk 0:00:10]} 39. Ke4 {[%clk 0:00:10]}  b3 {[%clk 0:00:09]} 40. Kd3 {[%clk 0:00:10]}  a4 {[%clk 0:00:08]} 41. Kc4 {[%clk 0:00:09]}  b2 {[%clk 0:00:08]} 42. Kc3 {[%clk 0:00:08]}  Ra1 {[%clk 0:00:07]} 43. Kxb2 {[%clk 0:00:05]}  Rxd1 {[%clk 0:00:07]} 44. Ka3 {[%clk 0:00:06]}  Rxd5 {[%clk 0:00:07]} 45. Kxa4 {[%clk 0:00:07]}  Rg5 {[%clk 0:00:07]} 46. Kb4 {[%clk 0:00:08]}  Rxg3 {[%clk 0:00:08]} 47. Kb5 {[%clk 0:00:08]}  Rxg2 {[%clk 0:00:09]} 48. Ka6 {[%clk 0:00:08]}  Rb2 {[%clk 0:00:08]} 49. Ka5 {[%clk 0:00:08]}  h5 {[%clk 0:00:08]} 50. Ka6 {[%clk 0:00:07]}  h4 {[%clk 0:00:09]} 51. Ka7 {[%clk 0:00:08]}  h3 {[%clk 0:00:09]} 52. Ka8 {[%clk 0:00:08]}  h2 {[%clk 0:00:10]} 53. Ka7 {[%clk 0:00:07]}  h1=R {[%clk 0:00:08]} 0-1